bitfinex-derivatives/quotes_BNBF0:USTF0_20250111
["timestamp","ask_amount","ask_price","bid_price","bid_amount"]
[1736593489222,0.2871253,696.56,694.93,0.28779877]
[1736593498927,0.26401456,696.55,694.93,0.28779877]
[1736593499126,0.2640156,696.54,694.93,0.28779877]
[1736593499322,0.2640156,696.53,694.93,0.28779877]
[1736593499525,1.07549128,696.4,695.0,1.29381351]
[1736593500426,1.07549128,696.39,695.01,1.58157915]
[1736593500828,1.07549128,696.39,695.02,0.2877615]
[1736593501225,1.07549128,696.37,695.03,1.29381351]
[1736593501821,1.07549128,696.37,695.04,0.28775322]
[1736593502130,1.07549128,696.37,695.05,1.29381351]
[1736593502626,1.07549128,696.37,695.06,0.28774494]
[1736593503628,1.07549128,696.36,695.06,0.28774494]
[1736593504227,1.07549128,696.36,695.06,1.58155845]
[1736593505430,1.07549128,696.36,695.06,0.28774494]
[1736593506130,1.07549128,696.36,695.06,1.57785932]
[1736593506328,1.07549128,696.36,695.07,1.29011438]
[1736593506628,1.07549128,696.33,695.09,1.29381351]
[1736593507226,1.07549128,696.32,695.09,1.29381351]
[1736593508529,1.07549128,696.32,695.1,1.29011438]
[1736593508929,1.07549128,696.32,695.09,1.29381351]
[1736593509130,1.07549128,696.26,695.08,1.29011438]
[1736593509325,1.07549128,696.26,695.09,1.29011438]
[1736593509534,1.07549128,696.26,695.1,1.29011438]
[1736593509732,1.07549128,696.26,695.07,2.02970839]
[1736593509733,1.07549128,696.26,695.08,1.29011438]
[1736593509929,1.07549128,696.26,695.09,1.29011438]
[1736593510231,1.07549128,696.26,695.06,0.28774494]
[1736593510232,1.07549128,696.27,695.1,1.29011438]
[1736593510433,1.07549128,696.27,695.06,0.28774494]
[1736593510434,1.07549128,696.27,695.11,1.29011438]
[1736593510730,1.07549128,696.27,695.07,1.29011438]
[1736593510931,1.07549128,696.27,695.08,1.29011438]
[1736593511131,1.07549128,696.27,695.09,1.29011438]
[1736593511327,1.07549128,696.27,695.1,1.29011438]
[1736593511522,1.07549128,696.27,695.07,1.29011438]
[1736593512033,1.07549128,696.26,695.08,1.29011438]
[1736593512225,1.07549128,696.26,695.06,0.28774494]
[1736593512226,1.07549128,696.26,695.09,1.29011438]
[1736593512425,1.07549128,696.26,695.07,1.29011438]
[1736593512628,1.07549128,696.26,695.08,1.29011438]
[1736593512826,1.07549128,696.34,695.06,0.28774494]
[1736593513332,0.26407722,696.33,695.06,0.28774494]
[1736593513535,0.26409383,696.32,695.06,0.28774494]
[1736593513830,0.26409383,696.31,695.06,0.28774494]
[1736593514931,1.07549128,696.27,695.06,0.28774494]
[1736593515130,0.26409383,696.26,695.06,0.28774494]
[1736593516328,0.26409383,696.28,695.06,0.28774494]
[1736593516533,0.26409383,696.27,695.06,0.28774494]
[1736593516731,0.26409383,696.26,695.06,0.28774494]
[1736593516928,0.26409383,696.25,695.06,0.28774494]
[1736593517129,1.07549128,696.32,695.06,0.28774494]
[1736593517130,0.26409383,696.24,695.06,0.28774494]
[1736593517327,0.26409383,696.23,695.06,0.28774494]
[1736593517528,1.07549128,696.32,695.06,0.28774494]
[1736593517726,0.26410032,696.31,695.06,0.28774494]
[1736593518928,0.26411084,696.3,695.06,0.28774494]
[1736593519133,0.26411084,696.29,695.06,0.28774494]
[1736593519433,0.26411084,696.28,695.06,0.28774494]
[1736593519634,0.26411084,696.27,695.06,0.28774494]
[1736593519837,0.26411084,696.26,695.06,0.28774494]
[1736593520038,0.26411084,696.25,695.06,0.28774494]
[1736593520334,1.07549128,696.36,695.06,0.28774494]
[1736593520335,0.5513681,696.24,695.06,0.28774494]
[1736593520531,0.55137223,696.23,695.06,0.28774494]
[1736593520737,0.28726139,696.23,695.06,0.28774494]
[1736593521035,0.26411375,696.22,695.06,0.28774494]
[1736593521634,0.28726139,696.23,695.06,0.28774494]
[1736593522635,0.26411421,696.22,695.06,0.28774494]
[1736593524240,0.28726139,696.23,695.06,0.28774494]
[1736593524434,0.26411477,696.22,695.06,0.28774494]
[1736593527938,0.55138028,696.22,695.06,0.28774494]
[1736593528133,0.26411477,696.21,695.06,0.28774494]
[1736593529040,0.28726551,696.22,695.06,0.28774494]
[1736593530739,0.26410776,696.21,695.06,0.28774494]
[1736593530941,0.28726551,696.22,695.06,0.28774494]
[1736593531237,0.26410621,696.21,695.06,0.28774494]
[1736593531433,0.28726551,696.22,695.06,0.28774494]
[1736593532737,0.26411066,696.21,695.06,0.28774494]
[1736593534043,0.28726551,696.22,695.06,0.28774494]
[1736593534244,0.26411077,696.21,695.06,0.28774494]
[1736593534443,0.28726551,696.22,695.06,0.28774494]
[1736593544738,1.36275679,696.22,695.06,0.28774494]
[1736593545539,1.07549128,696.21,695.06,0.28774494]
[1736593548342,1.07549128,696.18,695.06,0.28774494]
[1736593549543,0.28726551,696.22,695.06,0.28774494]
[1736593566756,1.07549128,696.58,695.06,0.28774494]
[1736593566757,1.07549128,696.58,695.07,1.29011438]
[1736593566957,1.07549128,696.58,695.08,1.29011438]
[1736593567154,1.07549128,696.58,695.09,1.5778469]
[1736593567359,1.07549128,696.61,695.1,1.29011438]
[1736593567556,0.26395998,696.6,695.11,1.57783862]
[1736593567756,1.07549128,696.61,695.12,1.29011438]
[1736593567956,1.07549128,696.61,695.13,1.57783034]
[1736593568263,1.07549128,696.61,695.14,0.28771182]
[1736593568561,1.50007543,696.97,695.14,0.28771182]
[1736593568562,1.07549128,696.71,695.14,0.28771182]
[1736593568756,0.55102647,696.7,695.14,0.28771182]
[1736593568960,0.55103059,696.69,695.14,0.28771182]
[1736593569161,0.28707584,696.68,695.14,0.28771182]
[1736593569359,0.26395868,696.67,695.14,0.28771182]
[1736593569558,0.28708408,696.66,695.14,0.28771182]
[1736593569761,0.26395868,696.65,695.14,0.28771182]
[1736593569957,0.28708408,696.66,695.14,0.28771182]
[1736593569958,0.26395731,696.64,695.14,0.28771182]
[1736593570257,0.26395731,696.63,695.14,0.28771182]
[1736593570562,0.28708408,696.66,695.14,0.28771182]
[1736593570756,0.26395411,696.65,695.14,0.28771182]
[1736593571962,0.26395134,696.64,695.14,0.28771182]
[1736593572165,0.28708408,696.66,695.14,0.28771182]
[1736593572363,0.26395134,696.65,695.14,0.28771182]
[1736593575465,0.28708408,696.66,695.14,0.28771182]
[1736593575668,0.26394714,696.65,695.14,0.28771182]
[1736593576167,0.28708408,696.66,695.14,0.28771182]
[1736593582669,1.49942371,697.31,695.14,0.28771182]
[1736593582872,0.2868247,697.29,695.14,0.28771182]
[1736593591376,0.26379714,697.28,695.14,0.28771182]
[1736593592384,0.2868247,697.29,695.14,0.28771182]
[1736593593988,0.2638343,697.28,695.14,0.28771182]
[1736593595786,0.2868247,697.29,695.14,0.28771182]
[1736593595989,0.26382881,697.28,695.14,0.28771182]
[1736593599090,0.2868247,697.29,695.14,0.28771182]
[1736593599389,0.26383162,697.28,695.14,0.28771182]
[1736593600692,0.26384333,697.27,695.14,0.28771182]
[1736593600888,1.33277071,697.26,695.14,0.28771182]
[1736593601090,0.26384333,697.25,695.14,0.28771182]
[1736593601285,1.06892738,697.26,695.14,0.28771182]
[1736593601494,0.26384467,697.25,695.14,0.28771182]
[1736593601794,0.26385484,697.24,695.14,0.28771182]
[1736593601992,0.26385484,697.23,695.14,0.28771182]
[1736593602293,0.26385484,697.22,695.14,0.28771182]
[1736593602493,1.06892738,696.94,695.14,0.28771182]
[1736593602686,0.26385484,696.93,695.14,0.28771182]
[1736593603495,0.26386165,696.92,695.14,0.28771182]
[1736593604393,1.33278903,696.92,695.14,0.28771182]
[1736593604692,0.26386165,696.91,695.14,0.28771182]
[1736593605592,0.26386165,696.9,695.14,0.28771182]
[1736593605793,0.26386165,696.89,695.14,0.28771182]
[1736593605994,0.26388299,696.88,695.14,0.28771182]
[1736593606193,0.26388299,696.87,695.14,0.28771182]
[1736593606495,1.06892738,696.93,695.14,0.28771182]
[1736593606696,0.26387754,696.92,695.14,0.28771182]
[1736593607291,1.33280492,696.92,695.14,0.28771182]
[1736593607492,0.26387754,696.91,695.14,0.28771182]
[1736593608192,0.26387754,696.9,695.14,0.28771182]
[1736593608390,1.06892738,696.94,695.14,0.28771182]
[1736593608588,0.28697286,696.93,695.14,0.28771182]
[1736593609397,1.35590024,696.93,695.14,0.28771182]
[1736593610394,0.28697286,696.93,695.14,0.28771182]
[1736593618301,0.28697286,696.93,695.16,1.27368674]
[1736593618801,0.28697286,696.93,695.18,0.28769527]
[1736593619201,0.26385848,696.92,695.19,1.27368674]
[1736593619502,0.26385877,696.91,695.19,1.27368674]
[1736593619700,0.26385877,696.9,695.19,1.27368674]
[1736593619901,0.28697286,696.93,695.19,1.27368674]
[1736593620096,1.06892738,696.9,695.39,1.27368674]
[1736593620397,1.06892738,696.9,695.4,0.28760425]
[1736593620601,0.263855,696.89,695.4,0.28760425]
[1736593620802,1.06892738,696.9,695.42,1.27368674]
[1736593621799,1.06892738,696.91,695.43,1.27368674]
[1736593621997,1.06892738,696.91,695.44,0.28758771]
[1736593622999,0.28697286,696.93,695.44,1.56127445]
[1736593623904,0.28697286,696.93,695.47,1.27368674]
[1736593624203,0.28697286,696.93,695.48,0.28757117]
[1736593624397,0.28697286,696.93,695.49,1.29011438]
[1736593624600,0.28697286,696.93,695.5,0.2875629]
[1736593625202,0.26384252,696.92,695.5,0.2875629]
[1736593625499,0.28697286,696.93,695.5,0.2875629]
[1736593626104,0.28697286,696.93,695.54,1.27368674]
[1736593627104,0.26384646,696.92,695.54,1.27368674]
[1736593627305,0.28697286,696.93,695.54,1.27368674]
[1736593627506,0.28697286,696.93,695.55,1.27368674]
[1736593628604,0.28697286,696.93,695.52,1.27368674]
[1736593628605,0.26384714,696.92,695.52,1.27368674]
[1736593629205,0.2638475,696.91,695.52,1.27368674]
[1736593629513,0.28697286,696.93,695.52,1.27368674]
[1736593629703,1.33277393,696.92,695.55,1.27368674]
[1736593629908,0.26384655,696.91,695.55,1.27368674]
[1736593630509,1.06892738,696.92,695.55,1.27368674]
[1736593630811,1.35590024,696.93,695.57,1.27368674]
[1736593631008,0.26384224,696.92,695.57,1.27368674]
[1736593632109,1.06892738,696.83,695.53,3.31982277]
[1736593632502,1.06892738,696.83,695.5,0.2875629]
[1736593632807,1.06892738,696.84,695.5,0.2875629]
[1736593633912,1.06892738,696.84,695.5,3.60738567]
[1736593635512,1.06892738,696.84,695.51,1.29011438]
[1736593635708,1.06892738,696.83,695.52,0.28755463]
[1736593636611,1.06892738,696.83,695.53,1.29011438]
[1736593636814,1.06892738,696.81,695.54,1.29011438]
[1736593637111,1.06892738,696.81,695.55,1.29011438]
[1736593637311,1.06892738,696.81,695.52,0.28755463]
[1736593637508,1.06892738,696.77,695.52,0.28755463]
[1736593638509,1.06892738,696.74,695.52,0.28755463]
[1736593639214,1.06892738,696.81,695.52,0.28755463]
[1736593640215,0.28697286,696.93,695.52,0.28755463]
[1736593649527,0.26388524,696.92,695.52,0.28755463]
[1736593649825,1.06892738,696.85,695.52,0.28755463]
[1736593650824,1.06892738,696.87,695.52,0.28755463]
[1736593651828,1.06892738,696.89,695.52,0.28755463]
[1736593652724,1.06892738,696.87,695.52,0.28755463]
[1736593653727,1.06892738,696.88,695.52,0.28755463]
[1736593654726,1.06892738,696.89,695.52,0.28755463]
[1736593655828,0.2869811,696.91,695.52,0.28755463]
[1736593659230,1.35590848,696.91,695.52,0.28755463]
[1736593662232,1.06892738,696.83,695.52,0.28755463]
[1736593662933,1.06892738,696.76,695.52,0.28755463]
[1736593664730,1.06892738,696.74,695.52,0.28755463]
[1736593665530,1.06892738,696.73,695.52,0.28755463]
[1736593666432,1.06892738,696.75,695.52,0.28755463]
[1736593668838,1.06892738,696.73,695.52,0.28755463]
[1736593669736,1.06892738,696.71,695.52,0.28755463]
[1736593670940,1.06892738,696.69,695.52,0.28755463]
[1736593671840,1.06892738,696.65,695.52,0.28755463]
[1736593673941,1.06892738,696.84,695.52,0.28755463]
[1736593674133,0.28701404,696.83,695.52,0.28755463]
[1736593678046,0.28701404,696.83,694.69,3.32008156]
[1736593678240,1.06892738,696.88,694.66,3.32008156]
[1736593678442,0.26395689,696.87,694.66,3.32008156]
[1736593678643,1.06892738,696.81,694.88,1.27368674]
[1736593679543,1.06892738,696.83,694.87,1.27368674]
[1736593680240,1.06892738,696.83,694.86,1.27368674]
[1736593680439,0.26395766,696.82,694.86,1.27368674]
[1736593680845,1.06892738,696.83,694.87,3.32008156]
[1736593680846,0.26395766,696.81,694.87,3.32008156]
[1736593681045,0.26395766,696.8,694.88,6.45976269]
[1736593681241,0.26395766,696.79,694.89,3.32008156]
[1736593681447,1.06892738,696.68,695.22,1.27368674]
[1736593681747,0.26395766,696.67,695.22,1.27368674]
[1736593682050,0.26395333,696.66,695.22,1.27368674]
[1736593682347,0.26395333,696.65,695.19,1.27368674]
[1736593682541,0.26395333,696.64,695.19,1.27368674]
[1736593682746,0.26395333,696.63,695.19,1.27368674]
[1736593682945,0.26396887,696.62,695.19,1.27368674]
[1736593683144,1.06892738,696.71,695.19,1.27368674]
[1736593683351,9.4879488,702.06,695.07,1.27368674]
[1736593683352,1.06892738,696.68,695.07,1.27368674]
[1736593683648,1.06892738,696.68,695.07,7.73344943]
[1736593683943,1.06892738,696.68,695.08,3.32008156]
[1736593684648,0.26394816,696.67,695.15,1.27368674]
[1736593684850,1.06892738,696.75,695.15,1.27368674]
[1736593685047,0.26394892,696.74,695.15,1.27368674]
[1736593685647,1.06892738,696.69,695.1,3.32008156]
[1736593685848,0.26394892,696.68,695.1,3.32008156]
[1736593686554,1.06892738,696.65,695.1,3.32008156]
[1736593686845,0.26394892,696.64,695.1,3.32008156]
[1736593687250,1.06892738,696.65,695.1,3.32008156]
[1736593687451,0.2639755,696.64,695.1,3.32008156]
[1736593687651,0.2639755,696.64,695.03,3.32008156]
[1736593687952,0.2639755,696.63,695.03,3.32008156]
[1736593688151,0.2639755,696.62,695.03,3.32008156]
[1736593688353,0.26398507,696.61,695.03,3.32008156]
[1736593688554,0.26398507,696.6,695.03,3.32008156]
[1736593688754,1.06892738,696.64,695.03,3.32008156]
[1736593688954,0.26398507,696.63,695.03,3.32008156]
[1736593689150,0.26398507,696.63,694.91,3.32008156]
[1736593689454,0.26398507,696.63,694.92,3.32008156]
[1736593689654,0.26398507,696.63,694.93,3.32008156]
[1736593689851,0.26398507,696.63,694.94,1.28444822]
[1736593690151,0.26398329,696.62,694.95,1.28444822]
[1736593690356,0.26398329,696.61,694.96,1.28444822]
[1736593690656,1.06892738,696.65,694.97,4.42412935]
[1736593690849,0.26398261,696.64,694.98,3.32008156]
[1736593691654,0.26398261,696.63,694.98,3.32008156]
[1736593691854,0.26398261,696.62,694.98,4.5937683]
[1736593692055,1.06892738,696.77,694.98,4.5937683]
[1736593692255,0.26397524,696.76,694.99,3.13968113]
[1736593692453,0.26397524,696.76,694.99,6.45976269]
[1736593692652,1.06892738,696.77,695.0,3.32008156]
[1736593692853,0.26397699,696.76,695.0,3.32008156]
[1736593693257,0.26397699,696.75,695.0,3.32008156]
[1736593693450,0.26397699,696.74,695.0,3.32008156]
[1736593693650,0.26397699,696.73,695.0,3.32008156]
[1736593693851,0.26397699,696.72,695.0,3.32008156]
[1736593694053,0.26397699,696.71,695.0,3.32008156]
[1736593694250,0.26397699,696.7,694.98,3.32008156]
[1736593694458,0.26397699,696.69,694.98,3.32008156]
[1736593694653,0.26397699,696.68,694.98,3.32008156]
[1736593694857,0.26397699,696.67,694.98,3.32008156]
[1736593695054,0.26397699,696.66,694.99,2.55813496]
[1736593695357,0.26397699,696.65,694.99,2.55813496]
[1736593695559,0.26397699,696.64,694.99,5.69781609]
[1736593695755,0.26397699,696.63,695.0,3.32008156]
[1736593695959,0.26397699,696.62,695.0,3.32008156]
[1736593696162,1.06892738,696.78,695.0,4.5937683]
[1736593696458,0.26398014,696.77,695.0,4.5937683]
[1736593696853,1.33290752,696.77,695.01,3.13968113]
[1736593697057,0.26398014,696.76,695.01,6.45976269]
[1736593697257,0.26398014,696.76,695.02,3.32008156]
[1736593698157,0.2639805,696.75,695.02,3.32008156]
[1736593698356,0.2639805,696.74,695.02,3.32008156]
[1736593698562,0.2639805,696.73,695.02,4.5937683]
[1736593698763,0.2639805,696.72,695.02,4.5937683]
[1736593698962,0.2639805,696.74,695.02,4.5937683]
[1736593699164,0.2639805,696.73,695.03,1.27368674]
[1736593699358,0.2639805,696.72,695.03,1.27368674]
[1736593699659,0.2639805,696.71,695.03,1.27368674]
[1736593699864,0.2639805,696.7,695.03,4.41336787]
[1736593700162,1.06892738,696.63,695.04,3.32008156]
[1736593700463,0.2639805,696.62,695.04,3.32008156]
[1736593700866,0.26399401,696.61,695.04,3.32008156]
[1736593701965,1.06892738,696.56,694.97,3.32008156]
[1736593702959,1.06892738,696.64,694.97,3.32008156]
[1736593703767,1.06892738,696.64,694.73,3.32008156]
[1736593704764,1.06892738,696.61,694.73,3.32008156]
[1736593705461,1.06892738,696.61,694.75,0.28787333]
[1736593705669,1.06892738,696.59,694.75,0.28787333]
[1736593705966,0.28711705,696.58,694.75,0.28787333]
[1736593707766,0.28711705,696.58,694.76,2.03563334]
[1736593708061,0.28711705,696.58,694.77,3.32008156]
[1736593708267,0.28711705,696.58,694.78,1.28444822]
[1736593708462,0.28711705,696.58,694.8,0.28785261]
[1736593708668,0.28711705,696.58,694.81,1.28444822]
[1736593708865,0.28711705,696.58,694.82,1.28444822]
[1736593709069,0.28711705,696.58,694.83,4.71196954]
[1736593709262,0.28711705,696.58,694.84,3.32008156]
[1736593709463,0.28711705,696.58,695.09,1.27368674]
[1736593710971,0.28711705,696.58,695.12,1.27368674]
[1736593711267,0.28711705,696.58,695.14,0.28771182]
[1736593711770,0.28711705,696.58,695.15,1.27368674]
[1736593711969,0.28711705,696.58,695.17,0.28769941]
[1736593712469,0.28711705,696.58,695.18,1.27368674]
[1736593713469,0.28711705,696.58,695.17,0.28769941]
[1736593715663,0.28711705,696.58,695.18,1.28444822]
[1736593715872,0.28711705,696.58,695.19,4.42412935]
[1736593716067,0.28711705,696.58,695.2,3.32008156]
[1736593716272,0.28711705,696.58,695.21,1.57213107]
[1736593716568,0.28711705,696.58,695.22,1.28444822]
[1736593716773,0.28711705,696.58,695.23,1.5721228]
[1736593716975,0.28711705,696.58,695.24,0.28767044]
[1736593717776,0.28711705,696.58,695.25,1.28444822]
[1736593717973,0.28711705,696.58,695.24,0.28767044]
[1736593717974,0.28711705,696.58,695.26,1.57211038]
[1736593718168,0.28711705,696.58,695.27,1.57210625]
[1736593718371,0.28711705,696.58,695.28,1.57210211]
[1736593718574,0.28711705,696.58,695.29,1.57209797]
[1736593718775,0.28711705,696.58,695.3,1.28444822]
[1736593719181,0.28711705,696.58,695.29,0.28764975]
[1736593726588,0.28711705,696.58,695.3,1.28444822]
[1736593726886,0.28711705,696.58,695.31,1.28444822]
[1736593727090,0.28711705,696.58,695.29,0.28764975]
[1736593728591,0.28711705,696.58,695.3,1.28444822]
[1736593728792,0.28711705,696.58,695.31,1.28444822]
[1736593728994,0.28711705,696.58,695.32,1.28444822]
[1736593729294,0.28711705,696.58,695.3,1.28444822]
[1736593729493,0.28711705,696.58,695.31,1.28444822]
[1736593729792,0.28711705,696.58,695.32,1.28444822]
[1736593730092,0.28711705,696.58,695.3,1.28444822]
[1736593730292,0.28711705,696.58,695.29,0.28764975]
[1736593730293,0.28711705,696.58,695.31,1.28444822]
[1736593730486,0.28711705,696.58,695.32,1.28444822]
[1736593730687,0.28711705,696.58,695.3,1.28444822]
[1736593730887,0.28711705,696.58,695.31,1.28444822]
[1736593731193,0.28711705,696.58,695.32,1.57208556]
[1736593731393,0.28711705,696.58,695.33,0.28763321]
[1736593754210,1.06892738,696.56,695.33,0.28763321]
[1736593756208,1.35604443,696.58,695.33,0.28763321]
[1736593757116,1.06892738,696.57,695.33,0.28763321]
[1736593758408,0.28711705,696.58,695.33,0.28763321]
[1736593779028,0.28711705,696.58,695.34,3.13968113]
[1736593779430,1.06892738,696.52,695.34,3.13968113]
[1736593780628,1.06892738,696.47,695.34,3.13968113]
[1736593780833,1.06892738,696.47,695.33,0.28763321]
[1736593781533,0.28711705,696.58,695.33,0.28763321]
[1736593781534,1.06892738,696.46,695.33,0.28763321]
[1736593782330,0.28711705,696.58,695.33,0.28763321]
[1736593782331,1.06892738,696.42,695.33,0.28763321]
[1736593783530,0.28711705,696.58,695.33,0.28763321]
[1736593783531,1.06892738,696.47,695.33,0.28763321]
[1736593785435,0.26403707,696.46,695.33,0.28763321]
[1736593785834,1.06892738,696.47,695.33,0.28763321]
[1736593786035,0.26403057,696.46,695.33,0.28763321]
[1736593786435,1.06892738,696.45,695.33,0.28763321]
[1736593787436,1.06892738,696.47,695.33,0.28763321]
[1736593788135,1.06892738,696.49,695.33,0.28763321]
[1736593788438,0.2640325,696.48,695.33,0.28763321]
[1736593790133,1.06892738,696.49,695.33,0.28763321]
[1736593790339,1.06892738,696.47,695.33,0.28763321]
[1736593791340,1.06892738,696.48,695.33,0.28763321]
[1736593791538,0.26403066,696.47,695.33,0.28763321]
[1736593792336,0.28716652,696.46,695.33,0.28763321]
[1736593792534,0.26403066,696.45,695.33,0.28763321]
[1736593792735,0.28717477,696.44,695.33,0.28763321]
[1736593792940,0.26403066,696.43,695.33,0.28763321]
[1736593793140,0.26405965,696.42,695.33,0.28763321]
[1736593793341,1.35610215,696.44,695.33,0.28763321]
[1736593793939,0.28717477,696.44,695.33,0.28763321]
[1736593794838,0.26405233,696.43,695.33,0.28763321]
[1736593795645,1.33297971,696.43,694.79,3.32008156]
[1736593795945,0.2640783,696.42,694.8,0.28785261]
[1736593796944,1.06892738,696.41,694.8,0.28785261]
[1736593797142,0.2640783,696.4,694.8,0.28785261]
[1736593797743,1.06892738,696.41,694.8,0.28785261]
[1736593797744,1.06892738,696.43,694.8,0.28785261]
[1736593798043,0.5512711,696.42,694.8,0.28785261]
[1736593798250,0.55127522,696.41,694.8,0.28785261]
[1736593798449,0.26408808,696.4,694.8,0.28785261]
[1736593798649,0.55127934,696.4,694.8,0.28785261]
[1736593798848,0.26408808,696.39,694.8,0.28785261]
[1736593799453,0.28719951,696.38,694.8,0.28785261]
[1736593799646,0.26408808,696.37,694.8,0.28785261]
[1736593800351,0.28720776,696.36,694.8,0.28785261]
[1736593800650,0.26408808,696.35,694.8,0.28785261]
[1736593800945,0.28721601,696.34,694.8,0.28785261]
[1736593804751,0.26407897,696.33,694.81,1.28444822]
[1736593805150,0.28721601,696.34,694.82,1.28444822]
[1736593805347,0.26407842,696.33,694.81,1.28444822]
[1736593805948,0.28721601,696.34,694.8,0.28785261]
[1736593814455,0.26411043,696.33,694.8,0.28785261]
[1736593814757,0.28722426,696.32,694.8,0.28785261]
[1736593821761,0.26416548,696.31,694.8,0.28785261]
[1736593821963,0.28723663,696.29,694.8,0.28785261]
[1736593822159,0.26416548,696.28,694.8,0.28785261]
[1736593822360,1.06892738,696.25,694.8,0.28785261]
[1736593822555,0.55142274,696.24,694.8,0.28785261]
[1736593822762,0.55142687,696.23,694.8,0.28785261]
[1736593822956,0.55143099,696.22,694.8,0.28785261]
[1736593823156,0.55143512,696.21,694.8,0.28785261]
[1736593823362,0.26416548,696.2,694.8,0.28785261]
[1736593823758,0.28727789,696.19,694.8,0.28785261]
[1736593824062,0.26417125,696.18,694.8,0.28785261]
[1736593824264,0.28728615,696.17,694.8,0.28785261]
[1736593824462,0.26417125,696.16,694.8,0.28785261]
[1736593824665,0.2872944,696.15,694.8,0.28785261]
[1736593824861,0.26417125,696.14,694.8,0.28785261]
[1736593825056,0.55146978,696.14,694.8,0.28785261]
[1736593825259,0.26417125,696.13,694.8,0.28785261]
[1736593826665,0.26416502,696.12,694.8,0.28785261]
[1736593826964,0.26416502,696.11,694.8,0.28785261]
[1736593827164,0.26416502,696.1,694.8,0.28785261]
[1736593827364,0.26416502,696.09,694.8,0.28785261]
[1736593827557,1.35622591,696.14,694.8,0.28785261]
[1736593827759,1.33309401,696.13,694.8,0.28785261]
[1736593827964,0.26416663,696.12,694.8,0.28785261]
[1736593828763,0.26416663,696.11,694.8,0.28785261]
[1736593828962,1.35622591,696.14,694.8,0.28785261]
[1736593829165,0.26415993,696.13,694.8,0.28785261]
[1736593829365,1.35622591,696.14,694.8,0.28785261]
[1736593829565,0.28729853,696.14,694.8,0.28785261]
[1736593830663,0.26414895,696.13,694.8,0.28785261]
[1736593830861,0.28729853,696.14,694.8,0.28785261]
[1736593856579,0.28729853,696.14,694.81,1.28444822]
[1736593856778,0.28729853,696.14,694.82,1.28444822]
[1736593856975,0.28729853,696.14,694.83,1.57228841]
[1736593857281,0.28729853,696.14,694.84,1.28444822]
[1736593857482,0.28729853,696.14,694.85,1.28444822]
[1736593857780,0.28729853,696.14,694.86,1.28444822]
[1736593857983,0.28729853,696.14,694.87,1.28444822]
[1736593858182,0.28729853,696.14,694.88,1.28444822]
[1736593858382,0.28729853,696.14,694.89,1.28444822]
[1736593858577,0.28729853,696.14,694.9,1.28444822]
[1736593858782,0.28729853,696.14,694.91,1.28444822]
[1736593858986,0.28729853,696.14,694.85,2.03563334]
[1736593858987,0.28729853,696.14,694.86,1.28444822]
[1736593859178,0.28729853,696.14,694.87,1.28444822]
[1736593859383,0.28729853,696.14,694.88,1.28444822]
[1736593859581,0.28729853,696.14,694.89,1.28444822]
[1736593859781,0.28729853,696.14,694.9,1.28444822]
[1736593859980,0.28729853,696.14,694.91,1.28444822]
[1736593860179,0.28729853,696.14,694.86,3.13968113]
[1736593860180,0.28729853,696.14,694.87,3.32008156]
[1736593861990,0.28729853,696.14,694.83,0.28784019]
[1736593874793,0.28729853,696.14,694.84,3.32008156]
[1736593874995,0.28729853,696.14,694.83,0.28784019]
[1736593874996,0.28729853,696.14,694.85,3.32008156]
[1736593875196,0.28729853,696.14,694.86,3.32008156]
[1736593875397,0.28729853,696.14,694.87,3.32008156]
[1736593875592,0.28729853,696.14,694.88,3.32008156]
[1736593875789,0.28729853,696.14,694.89,3.32008156]
[1736593875996,1.06892738,696.13,694.98,1.27368674]
[1736593876996,1.06892738,696.12,694.96,1.27368674]
[1736593878094,1.06892738,696.09,694.93,1.27368674]
[1736593879099,1.06892738,696.1,694.93,1.27368674]
[1736593879798,1.06892738,696.1,694.93,4.5937683]
[1736593880199,1.06892738,696.04,694.93,3.32008156]
[1736593880500,1.06892738,696.04,694.94,3.13968113]
[1736593880693,1.06892738,696.04,694.94,6.45976269]
[1736593880894,1.06892738,696.04,694.95,3.32008156]
[1736593881296,1.06892738,696.06,694.95,3.32008156]
[1736593882400,1.06892738,696.06,694.83,3.60792175]
[1736593883201,0.28729853,696.14,694.83,3.60792175]
[1736593884508,0.28729853,696.14,694.83,0.28784019]
[1736593904124,1.35622591,696.14,694.83,0.28784019]
[1736593906220,1.06892738,696.12,694.83,0.28784019]
[1736593907426,1.06892738,696.11,694.83,0.28784019]
[1736593910228,1.06892738,696.08,694.84,1.28444822]
[1736593910832,1.06892738,696.08,694.83,0.28784019]
[1736593911533,1.06892738,696.09,694.83,0.28784019]
[1736593912333,1.06892738,696.13,694.83,0.28784019]
[1736593914232,1.06892738,696.12,694.83,0.28784019]
[1736593916934,1.06892738,696.11,694.83,0.28784019]
[1736593917941,1.06892738,696.07,694.83,0.28784019]
[1736593919642,0.28729853,696.14,694.83,0.28784019]
[1736593932450,1.35622591,696.14,694.83,0.28784019]
[1736593933951,1.06892738,696.1,694.83,0.28784019]
[1736593935251,1.06892738,696.09,694.83,0.28784019]
[1736593936260,1.06892738,696.07,694.83,0.28784019]
[1736593937156,1.06892738,696.08,694.83,0.28784019]
[1736593937858,0.28729853,696.14,694.83,0.28784019]
[1736593937859,1.06892738,696.07,694.83,0.28784019]
[1736593939365,1.06892738,696.07,694.84,1.28444822]
[1736593939558,1.06892738,696.06,694.85,1.28444822]